[Event "Titled Tuesday Blitz January 03 Early 2023"]
[White "Mendez Fortes, Eduardo Jesus"]
[Black "Pakleza, Zbigniew"]
[WhiteFideId "3502376"]
[BlackFideId "1119290"]
[WhiteElo "2250"]
[BlackElo "2494"]
[Result "0-1"]
[Round "09"]
[TimeControl "180+2"]
[Date "2023.01.03"]
[WhiteClock "0:00:00"]
[BlackClock "0:02:05"]

1. e4 {[%clk 0:02:56]}  d6 {[%clk 0:02:59]} 2. d4 {[%clk 0:02:51]}  Nf6 {[%clk 0:02:54]} 3. Nc3 {[%clk 0:02:50]}  c6 {[%clk 0:02:54]} 4. f4 {[%clk 0:02:48]}  Qb6 {[%clk 0:02:54]} 5. e5 {[%clk 0:02:32]}  Nd5 {[%clk 0:02:54]} 6. Nxd5 {[%clk 0:02:29]}  cxd5 {[%clk 0:02:55]} 7. h3 {[%clk 0:02:20]}  Nc6 {[%clk 0:02:55]} 8. Nf3 {[%clk 0:02:09]}  Bf5 {[%clk 0:02:54]} 9. c3 {[%clk 0:01:58]}  e6 {[%clk 0:02:54]} 10. Bd3 {[%clk 0:01:53]}  g6 {[%clk 0:02:54]} 11. Bxf5 {[%clk 0:01:52]}  gxf5 {[%clk 0:02:55]} 12. Qe2 {[%clk 0:01:46]}  Be7 {[%clk 0:02:55]} 13. Be3 {[%clk 0:01:44]}  O-O-O {[%clk 0:02:55]} 14. O-O-O {[%clk 0:01:39]}  h5 {[%clk 0:02:55]} 15. Kb1 {[%clk 0:01:36]}  Kb8 {[%clk 0:02:56]} 16. Bf2 {[%clk 0:01:12]}  Rc8 {[%clk 0:02:55]} 17. Bh4 {[%clk 0:01:04]}  Bxh4 {[%clk 0:02:55]} 18. Nxh4 {[%clk 0:01:01]}  Na5 {[%clk 0:02:56]} 19. Ka1 {[%clk 0:00:58]}  dxe5 {[%clk 0:02:55]} 20. dxe5 {[%clk 0:00:55]}  Rc4 {[%clk 0:02:50]} 21. Nf3 {[%clk 0:00:48]}  Rxf4 {[%clk 0:02:48]} 22. Ng5 {[%clk 0:00:46]}  Qc7 {[%clk 0:02:36]} 23. Rhe1 {[%clk 0:00:40]}  h4 {[%clk 0:02:33]} 24. Qb5 {[%clk 0:00:38]}  a6 {[%clk 0:02:24]} 25. Qe2 {[%clk 0:00:32]}  Rg8 {[%clk 0:02:25]} 26. Nf3 {[%clk 0:00:25]}  Nc4 {[%clk 0:02:25]} 27. Rd4 {[%clk 0:00:22]}  Re4 {[%clk 0:02:18]} 28. Qf2 {[%clk 0:00:20]}  Qb6 {[%clk 0:02:14]} 29. Rexe4 {[%clk 0:00:17]}  fxe4 {[%clk 0:02:12]} 30. Nxh4 {[%clk 0:00:17]}  Nxe5 {[%clk 0:02:08]} 31. b3 {[%clk 0:00:10]}  Nc6 {[%clk 0:02:05]} 32. Qf4+ {[%clk 0:00:01]}  Ka7 {[%clk 0:02:05]} 33. Qxf7 {[%clk 0:00:01]}  Nxd4 {[%clk 0:02:05]} 34. Qxg8 {[%clk 0:00:00]}  Nb5 {[%clk 0:02:05]} 0-1


[Site "https://www.chess.com"]

[Event "Titled Tuesday Blitz January 03 Early 2023"]
[White "Bilan, Danila"]
[Black "Sychev, Klementy"]
[WhiteFideId "24161918"]
[BlackFideId "4114060"]
[WhiteElo "2303"]
[BlackElo "2547"]
[Result "0-1"]
[Round "09"]
[TimeControl "180+2"]
[Date "2023.01.03"]
[WhiteClock "0:00:02"]
[BlackClock "0:00:54"]

1. d4 {[%clk 0:03:00]}  Nf6 {[%clk 0:02:57]} 2. Nf3 {[%clk 0:03:00]}  g6 {[%clk 0:02:57]} 3. Bg5 {[%clk 0:02:59]}  Bg7 {[%clk 0:02:57]} 4. c3 {[%clk 0:02:56]}  O-O {[%clk 0:02:57]} 5. Nbd2 {[%clk 0:02:56]}  d5 {[%clk 0:02:55]} 6. e3 {[%clk 0:02:55]}  Nbd7 {[%clk 0:02:55]} 7. Bd3 {[%clk 0:02:51]}  Re8 {[%clk 0:02:54]} 8. O-O {[%clk 0:02:38]}  e5 {[%clk 0:02:54]} 9. dxe5 {[%clk 0:02:37]}  Nxe5 {[%clk 0:02:54]} 10. Nxe5 {[%clk 0:02:37]}  Rxe5 {[%clk 0:02:55]} 11. Nf3 {[%clk 0:02:28]}  Re8 {[%clk 0:02:55]} 12. h3 {[%clk 0:02:23]}  c6 {[%clk 0:02:54]} 13. Qc2 {[%clk 0:02:15]}  Qb6 {[%clk 0:02:53]} 14. Nd2 {[%clk 0:01:45]}  Nd7 {[%clk 0:02:48]} 15. e4 {[%clk 0:01:10]}  Nc5 {[%clk 0:02:33]} 16. Be3 {[%clk 0:01:03]}  d4 {[%clk 0:01:58]} 17. Bxd4 {[%clk 0:00:41]}  Bxd4 {[%clk 0:01:57]} 18. cxd4 {[%clk 0:00:42]}  Ne6 {[%clk 0:01:57]} 19. d5 {[%clk 0:00:35]}  cxd5 {[%clk 0:01:57]} 20. exd5 {[%clk 0:00:35]}  Nd4 {[%clk 0:01:57]} 21. Qa4 {[%clk 0:00:31]}  Rd8 {[%clk 0:01:52]} 22. Nc4 {[%clk 0:00:31]}  Qf6 {[%clk 0:01:51]} 23. Ne3 {[%clk 0:00:23]}  Qf4 {[%clk 0:01:20]} 24. Qa3 {[%clk 0:00:11]}  Bxh3 {[%clk 0:01:03]} 25. gxh3 {[%clk 0:00:11]}  Rxd5 {[%clk 0:00:54]} 26. Nxd5 {[%clk 0:00:06]}  Nf3+ {[%clk 0:00:55]} 27. Kg2 {[%clk 0:00:06]}  Nh4+ {[%clk 0:00:54]} 28. Kg1 {[%clk 0:00:02]}  Qg5+ {[%clk 0:00:54]} 0-1


[Site "https://www.chess.com"]

[Event "Titled Tuesday Blitz January 03 Early 2023"]
[White "Dragnev, Valentin"]
[Black "Kvaloy, Aksel Bu"]
[WhiteFideId "1634852"]
[BlackFideId "1528815"]
[WhiteElo "2593"]
[BlackElo "2321"]
[Result "1-0"]
[Round "09"]
[TimeControl "180+2"]
[Date "2023.01.03"]
[WhiteClock "0:00:04"]
[BlackClock "0:00:02"]

1. d4 {[%clk 0:02:58]}  Nf6 {[%clk 0:02:59]} 2. c4 {[%clk 0:02:58]}  e6 {[%clk 0:02:58]} 3. Nc3 {[%clk 0:02:57]}  Bb4 {[%clk 0:02:58]} 4. a3 {[%clk 0:02:57]}  Bxc3+ {[%clk 0:02:57]} 5. bxc3 {[%clk 0:02:58]}  O-O {[%clk 0:02:56]} 6. f3 {[%clk 0:02:59]}  c5 {[%clk 0:02:44]} 7. e4 {[%clk 0:02:58]}  d6 {[%clk 0:02:44]} 8. Bd3 {[%clk 0:02:50]}  e5 {[%clk 0:02:36]} 9. Ne2 {[%clk 0:02:50]}  Nc6 {[%clk 0:02:33]} 10. Be3 {[%clk 0:02:49]}  b6 {[%clk 0:02:26]} 11. O-O {[%clk 0:02:49]}  h6 {[%clk 0:02:09]} 12. Ng3 {[%clk 0:02:02]}  Nh7 {[%clk 0:01:41]} 13. d5 {[%clk 0:01:51]}  Ne7 {[%clk 0:01:40]} 14. f4 {[%clk 0:01:51]}  exf4 {[%clk 0:01:27]} 15. Bxf4 {[%clk 0:01:52]}  f5 {[%clk 0:01:27]} 16. e5 {[%clk 0:01:36]}  dxe5 {[%clk 0:01:20]} 17. Bxe5 {[%clk 0:01:37]}  Ng6 {[%clk 0:01:20]} 18. Bf4 {[%clk 0:01:26]}  Nxf4 {[%clk 0:01:18]} 19. Rxf4 {[%clk 0:01:27]}  Qd6 {[%clk 0:01:10]} 20. Rf2 {[%clk 0:01:23]}  g6 {[%clk 0:01:06]} 21. Qd2 {[%clk 0:01:24]}  Kg7 {[%clk 0:01:06]} 22. a4 {[%clk 0:01:10]}  a5 {[%clk 0:01:02]} 23. Rb1 {[%clk 0:01:03]}  Bd7 {[%clk 0:01:02]} 24. Qa2 {[%clk 0:01:03]}  Nf6 {[%clk 0:00:57]} 25. Rfb2 {[%clk 0:01:02]}  Rab8 {[%clk 0:00:56]} 26. Rb3 {[%clk 0:00:55]}  Ng4 {[%clk 0:00:44]} 27. Nf1 {[%clk 0:00:48]}  Ne5 {[%clk 0:00:36]} 28. Be2 {[%clk 0:00:48]}  f4 {[%clk 0:00:34]} 29. Nd2 {[%clk 0:00:48]}  Bf5 {[%clk 0:00:32]} 30. Rf1 {[%clk 0:00:44]}  g5 {[%clk 0:00:27]} 31. Qb2 {[%clk 0:00:35]}  Nd3 {[%clk 0:00:23]} 32. Bxd3 {[%clk 0:00:33]}  Bxd3 {[%clk 0:00:24]} 33. Re1 {[%clk 0:00:32]}  Rfe8 {[%clk 0:00:11]} 34. Qc1 {[%clk 0:00:32]}  Rxe1+ {[%clk 0:00:10]} 35. Qxe1 {[%clk 0:00:33]}  Kf7 {[%clk 0:00:10]} 36. Qd1 {[%clk 0:00:18]}  Re8 {[%clk 0:00:09]} 37. Rb2 {[%clk 0:00:12]}  Qe5 {[%clk 0:00:09]} 38. Nf3 {[%clk 0:00:10]}  Qe3+ {[%clk 0:00:09]} 39. Rf2 {[%clk 0:00:07]}  Bxc4 {[%clk 0:00:06]} 40. h3 {[%clk 0:00:07]}  Rd8 {[%clk 0:00:05]} 41. d6 {[%clk 0:00:08]}  Qe6 {[%clk 0:00:05]} 42. Rd2 {[%clk 0:00:07]}  Qe3+ {[%clk 0:00:04]} 43. Kh1 {[%clk 0:00:08]}  Qxc3 {[%clk 0:00:05]} 44. d7 {[%clk 0:00:07]}  Qf6 {[%clk 0:00:05]} 45. Rd6 {[%clk 0:00:07]}  Be6 {[%clk 0:00:05]} 46. Qd3 {[%clk 0:00:07]}  Ke7 {[%clk 0:00:04]} 47. Kh2 {[%clk 0:00:06]}  Rxd7 {[%clk 0:00:04]} 48. Rxd7+ {[%clk 0:00:06]}  Bxd7 {[%clk 0:00:05]} 49. Qe4+ {[%clk 0:00:06]}  Kd8 {[%clk 0:00:05]} 50. Qb7 {[%clk 0:00:07]}  Qc6 {[%clk 0:00:04]} 51. Qb8+ {[%clk 0:00:07]}  Ke7 {[%clk 0:00:04]} 52. Qe5+ {[%clk 0:00:08]}  Be6 {[%clk 0:00:05]} 53. Qg7+ {[%clk 0:00:09]}  Kd6 {[%clk 0:00:05]} 54. Qxh6 {[%clk 0:00:09]}  c4 {[%clk 0:00:05]} 55. Qxg5 {[%clk 0:00:09]}  Qe4 {[%clk 0:00:04]} 56. Qd8+ {[%clk 0:00:09]}  Kc5 {[%clk 0:00:03]} 57. Qe7+ {[%clk 0:00:08]}  Kc6 {[%clk 0:00:02]} 58. Qe8+ {[%clk 0:00:07]}  Kb7 {[%clk 0:00:02]} 59. Ng5 {[%clk 0:00:04]}  Bd5 {[%clk 0:00:02]} 60. Nxe4 {[%clk 0:00:04]} 1-0


[Site "https://www.chess.com"]

[Event "Titled Tuesday Blitz January 03 Early 2023"]
[White "Mohammed, Zozek Salah Mohammed"]
[Black "Agasarov, Benik"]
[WhiteFideId "4803361"]
[BlackFideId "13314823"]
[WhiteElo "2210"]
[BlackElo "2235"]
[Result "0-1"]
[Round "09"]
[TimeControl "180+2"]
[Date "2023.01.03"]
[WhiteClock "0:00:16"]
[BlackClock "0:01:39"]

1. d4 {[%clk 0:03:00]}  d5 {[%clk 0:02:58]} 2. c4 {[%clk 0:02:59]}  e6 {[%clk 0:02:58]} 3. Nf3 {[%clk 0:02:58]}  Nf6 {[%clk 0:02:55]} 4. g3 {[%clk 0:02:58]}  Bb4+ {[%clk 0:02:48]} 5. Bd2 {[%clk 0:02:53]}  a5 {[%clk 0:02:48]} 6. Bg2 {[%clk 0:02:51]}  O-O {[%clk 0:02:48]} 7. O-O {[%clk 0:02:51]}  dxc4 {[%clk 0:02:48]} 8. Bg5 {[%clk 0:02:49]}  b5 {[%clk 0:02:39]} 9. a3 {[%clk 0:02:18]}  Be7 {[%clk 0:02:38]} 10. Nc3 {[%clk 0:02:18]}  c6 {[%clk 0:02:29]} 11. Ne5 {[%clk 0:02:18]}  Ra6 {[%clk 0:02:26]} 12. e3 {[%clk 0:01:56]}  h6 {[%clk 0:02:22]} 13. Bxf6 {[%clk 0:01:53]}  Bxf6 {[%clk 0:02:23]} 14. Qe2 {[%clk 0:01:53]}  Qc7 {[%clk 0:02:21]} 15. f4 {[%clk 0:01:50]}  Bb7 {[%clk 0:02:17]} 16. Ne4 {[%clk 0:01:48]}  Be7 {[%clk 0:02:15]} 17. a4 {[%clk 0:01:37]}  Nd7 {[%clk 0:02:13]} 18. Rac1 {[%clk 0:01:28]}  Rb6 {[%clk 0:02:02]} 19. b3 {[%clk 0:01:16]}  cxb3 {[%clk 0:01:57]} 20. axb5 {[%clk 0:01:15]}  Nxe5 {[%clk 0:01:56]} 21. fxe5 {[%clk 0:01:09]}  Qd7 {[%clk 0:01:56]} 22. bxc6 {[%clk 0:00:55]}  Bxc6 {[%clk 0:01:54]} 23. Qg4 {[%clk 0:00:51]}  Bxe4 {[%clk 0:01:53]} 24. Bxe4 {[%clk 0:00:47]}  b2 {[%clk 0:01:53]} 25. Rb1 {[%clk 0:00:46]}  a4 {[%clk 0:01:52]} 26. Bc2 {[%clk 0:00:43]}  Qc6 {[%clk 0:01:50]} 27. Qe2 {[%clk 0:00:40]}  a3 {[%clk 0:01:48]} 28. Qd3 {[%clk 0:00:39]}  g6 {[%clk 0:01:47]} 29. Bb3 {[%clk 0:00:29]}  Qb5 {[%clk 0:01:44]} 30. Qxb5 {[%clk 0:00:24]}  Rxb5 {[%clk 0:01:45]} 31. Ba2 {[%clk 0:00:24]}  Rc8 {[%clk 0:01:45]} 32. Rfd1 {[%clk 0:00:19]}  Rc3 {[%clk 0:01:43]} 33. e4 {[%clk 0:00:19]}  Re3 {[%clk 0:01:43]} 34. d5 {[%clk 0:00:19]}  Rxe4 {[%clk 0:01:40]} 35. d6 {[%clk 0:00:18]}  Bd8 {[%clk 0:01:40]} 36. d7 {[%clk 0:00:16]}  Rbxe5 {[%clk 0:01:39]} 37. Rd3 {[%clk 0:00:17]}  Re1+ {[%clk 0:01:39]} 38. Kf2 {[%clk 0:00:17]}  Rxb1 {[%clk 0:01:39]} 39. Bxb1 {[%clk 0:00:18]}  Ra5 {[%clk 0:01:38]} 40. Ba2 {[%clk 0:00:17]}  b1=Q {[%clk 0:01:36]} 41. Bxb1 {[%clk 0:00:17]}  a2 {[%clk 0:01:37]} 42. Bxa2 {[%clk 0:00:17]}  Rxa2+ {[%clk 0:01:38]} 43. Kf3 {[%clk 0:00:17]}  Kf8 {[%clk 0:01:38]} 44. h4 {[%clk 0:00:16]}  Ke7 {[%clk 0:01:39]} 0-1


[Site "https://www.chess.com"]

[Event "Titled Tuesday Blitz January 03 Early 2023"]
[White "TheKnightOfBosnia"]
[Black "Leiva, Gianmarco"]
[BlackFideId "3804399"]
[WhiteElo "2481"]
[BlackElo "2392"]
[Result "1-0"]
[Round "09"]
[TimeControl "180+2"]
[Date "2023.01.03"]
[WhiteClock "0:00:28"]
[BlackClock "0:00:01"]

1. e4 {[%clk 0:03:00]}  c5 {[%clk 0:02:53]} 2. Nf3 {[%clk 0:03:01]}  d6 {[%clk 0:02:53]} 3. Bb5+ {[%clk 0:03:01]}  Nd7 {[%clk 0:02:51]} 4. d4 {[%clk 0:03:01]}  cxd4 {[%clk 0:02:51]} 5. Qxd4 {[%clk 0:03:02]}  a6 {[%clk 0:02:50]} 6. Bxd7+ {[%clk 0:03:02]}  Bxd7 {[%clk 0:02:50]} 7. Nc3 {[%clk 0:03:03]}  e5 {[%clk 0:02:43]} 8. Qd3 {[%clk 0:03:03]}  h6 {[%clk 0:02:43]} 9. O-O {[%clk 0:03:03]}  Nf6 {[%clk 0:02:42]} 10. Rd1 {[%clk 0:03:02]}  Be7 {[%clk 0:02:41]} 11. Nd2 {[%clk 0:03:02]}  Be6 {[%clk 0:02:19]} 12. Nf1 {[%clk 0:03:01]}  Qc7 {[%clk 0:02:15]} 13. Ne3 {[%clk 0:03:01]}  Qc5 {[%clk 0:02:15]} 14. a4 {[%clk 0:02:58]}  O-O {[%clk 0:02:14]} 15. Bd2 {[%clk 0:02:52]}  Rac8 {[%clk 0:02:11]} 16. f3 {[%clk 0:02:45]}  Bd8 {[%clk 0:02:11]} 17. Be1 {[%clk 0:02:41]}  Bc4 {[%clk 0:01:32]} 18. Qd2 {[%clk 0:02:33]}  Ba5 {[%clk 0:01:32]} 19. Bf2 {[%clk 0:02:30]}  Be6 {[%clk 0:01:32]} 20. Ned5 {[%clk 0:02:17]}  Qc4 {[%clk 0:01:04]} 21. Ne7+ {[%clk 0:02:00]}  Kh7 {[%clk 0:01:03]} 22. Nxc8 {[%clk 0:02:00]}  Rxc8 {[%clk 0:01:03]} 23. Qxd6 {[%clk 0:01:58]}  Nd7 {[%clk 0:00:49]} 24. Qd3 {[%clk 0:01:53]}  Qb4 {[%clk 0:00:28]} 25. Nd5 {[%clk 0:01:39]}  Qxb2 {[%clk 0:00:20]} 26. Rab1 {[%clk 0:01:37]}  Qa2 {[%clk 0:00:16]} 27. Rxb7 {[%clk 0:01:34]}  Nc5 {[%clk 0:00:17]} 28. Bxc5 {[%clk 0:01:33]}  Rxc5 {[%clk 0:00:17]} 29. Qb3 {[%clk 0:01:28]}  Rxc2 {[%clk 0:00:12]} 30. Qxa2 {[%clk 0:01:26]}  Rxa2 {[%clk 0:00:13]} 31. Nc7 {[%clk 0:01:03]}  Bxc7 {[%clk 0:00:07]} 32. Rxc7 {[%clk 0:01:01]}  Rxa4 {[%clk 0:00:07]} 33. Ra7 {[%clk 0:00:58]}  Ra2 {[%clk 0:00:06]} 34. Rd8 {[%clk 0:00:54]}  Bc4 {[%clk 0:00:04]} 35. Rda8 {[%clk 0:00:50]}  h5 {[%clk 0:00:03]} 36. h4 {[%clk 0:00:50]}  Ra1+ {[%clk 0:00:02]} 37. Kh2 {[%clk 0:00:48]}  Ra2 {[%clk 0:00:03]} 38. Kg1 {[%clk 0:00:44]}  Ra1+ {[%clk 0:00:04]} 39. Kh2 {[%clk 0:00:39]}  Ra2 {[%clk 0:00:05]} 40. Kh3 {[%clk 0:00:38]}  Bf1 {[%clk 0:00:04]} 41. Rxf7 {[%clk 0:00:37]}  Rxg2 {[%clk 0:00:04]} 42. Rf5 {[%clk 0:00:28]}  g6 {[%clk 0:00:02]} 43. Rf7+ {[%clk 0:00:28]}  Kh6 {[%clk 0:00:01]} 44. Rh8# {[%clk 0:00:28]} 1-0


[Site "https://www.chess.com"]

[Event "Titled Tuesday Blitz January 03 Early 2023"]
[White "Krienke, Makaio"]
[Black "Wagner, Dennis"]
[WhiteFideId "2038854"]
[BlackFideId "24650684"]
[WhiteElo "2115"]
[BlackElo "2595"]
[Result "0-1"]
[Round "09"]
[TimeControl "180+2"]
[Date "2023.01.03"]
[WhiteClock "0:00:07"]
[BlackClock "0:00:05"]

1. e4 {[%clk 0:03:00]}  e5 {[%clk 0:02:58]} 2. Nf3 {[%clk 0:03:00]}  Nc6 {[%clk 0:02:58]} 3. Bb5 {[%clk 0:03:01]}  a6 {[%clk 0:02:57]} 4. Ba4 {[%clk 0:03:02]}  Nf6 {[%clk 0:02:58]} 5. O-O {[%clk 0:03:02]}  Be7 {[%clk 0:02:58]} 6. Re1 {[%clk 0:03:02]}  b5 {[%clk 0:02:58]} 7. Bb3 {[%clk 0:03:02]}  O-O {[%clk 0:02:59]} 8. a4 {[%clk 0:02:59]}  Rb8 {[%clk 0:02:57]} 9. d3 {[%clk 0:02:59]}  d6 {[%clk 0:02:55]} 10. c3 {[%clk 0:02:59]}  h6 {[%clk 0:02:51]} 11. Nbd2 {[%clk 0:02:59]}  Re8 {[%clk 0:02:51]} 12. Nf1 {[%clk 0:02:54]}  Bf8 {[%clk 0:02:49]} 13. axb5 {[%clk 0:02:53]}  axb5 {[%clk 0:02:49]} 14. Ng3 {[%clk 0:02:50]}  b4 {[%clk 0:02:45]} 15. d4 {[%clk 0:02:43]}  bxc3 {[%clk 0:02:44]} 16. bxc3 {[%clk 0:02:42]}  Bd7 {[%clk 0:01:59]} 17. Ba2 {[%clk 0:02:14]}  exd4 {[%clk 0:01:44]} 18. cxd4 {[%clk 0:02:11]}  Nb4 {[%clk 0:01:40]} 19. Bb1 {[%clk 0:02:04]}  c5 {[%clk 0:01:19]} 20. h3 {[%clk 0:01:45]}  cxd4 {[%clk 0:01:16]} 21. Nxd4 {[%clk 0:01:45]}  g6 {[%clk 0:01:11]} 22. f4 {[%clk 0:01:28]}  Bg7 {[%clk 0:01:11]} 23. Kh2 {[%clk 0:01:26]}  Ng4+ {[%clk 0:01:06]} 24. Kg1 {[%clk 0:01:21]}  Qb6 {[%clk 0:00:58]} 25. Bb2 {[%clk 0:01:17]}  Nc6 {[%clk 0:00:29]} 26. hxg4 {[%clk 0:01:12]}  Nxd4 {[%clk 0:00:27]} 27. Kh2 {[%clk 0:00:39]}  Qxb2 {[%clk 0:00:27]} 28. Ra7 {[%clk 0:00:39]}  Bb5 {[%clk 0:00:14]} 29. Ba2 {[%clk 0:00:36]}  Rf8 {[%clk 0:00:10]} 30. f5 {[%clk 0:00:36]}  gxf5 {[%clk 0:00:05]} 31. gxf5 {[%clk 0:00:33]}  Qf2 {[%clk 0:00:05]} 32. Qg4 {[%clk 0:00:20]}  Kh8 {[%clk 0:00:05]} 33. Nh5 {[%clk 0:00:14]}  Be5+ {[%clk 0:00:05]} 34. Kh3 {[%clk 0:00:12]}  Rg8 {[%clk 0:00:05]} 35. Qh4 {[%clk 0:00:07]}  Qxg2# {[%clk 0:00:05]} 0-1


[Site "https://www.chess.com"]

[Event "Titled Tuesday Blitz January 03 Early 2023"]
[White "Skliarov, Viktor"]
[Black "Manukian, Artak"]
[WhiteFideId "14106736"]
[BlackFideId "13301373"]
[WhiteElo "2383"]
[BlackElo "2196"]
[Result "0-1"]
[Round "09"]
[TimeControl "180+2"]
[Date "2023.01.03"]
[WhiteClock "0:00:12"]
[BlackClock "0:01:12"]

1. e4 {[%clk 0:03:00]}  c6 {[%clk 0:02:59]} 2. d4 {[%clk 0:02:52]}  d5 {[%clk 0:03:00]} 3. e5 {[%clk 0:02:52]}  Bf5 {[%clk 0:03:00]} 4. Nf3 {[%clk 0:02:48]}  e6 {[%clk 0:02:59]} 5. Be2 {[%clk 0:02:48]}  c5 {[%clk 0:02:59]} 6. Be3 {[%clk 0:02:47]}  Qb6 {[%clk 0:02:58]} 7. Nc3 {[%clk 0:02:44]}  Qxb2 {[%clk 0:02:57]} 8. Nb5 {[%clk 0:02:36]}  Na6 {[%clk 0:02:54]} 9. c4 {[%clk 0:02:18]}  dxc4 {[%clk 0:02:37]} 10. Bxc4 {[%clk 0:02:09]}  O-O-O {[%clk 0:02:27]} 11. O-O {[%clk 0:02:00]}  Kb8 {[%clk 0:02:19]} 12. Qb3 {[%clk 0:01:12]}  Qxb3 {[%clk 0:02:13]} 13. axb3 {[%clk 0:01:12]}  Nh6 {[%clk 0:02:05]} 14. dxc5 {[%clk 0:01:05]}  Bxc5 {[%clk 0:02:00]} 15. Bxc5 {[%clk 0:01:02]}  Nxc5 {[%clk 0:01:59]} 16. Rxa7 {[%clk 0:00:49]}  Na6 {[%clk 0:01:58]} 17. Ra1 {[%clk 0:00:48]}  Be4 {[%clk 0:01:50]} 18. Nfd4 {[%clk 0:00:25]}  Nf5 {[%clk 0:01:49]} 19. Nxf5 {[%clk 0:00:20]}  Bxf5 {[%clk 0:01:48]} 20. Rxb7+ {[%clk 0:00:18]}  Kxb7 {[%clk 0:01:44]} 21. Nd6+ {[%clk 0:00:19]}  Rxd6 {[%clk 0:01:42]} 22. exd6 {[%clk 0:00:19]}  Nc5 {[%clk 0:01:43]} 23. b4 {[%clk 0:00:18]}  Ne4 {[%clk 0:01:26]} 24. d7 {[%clk 0:00:12]}  Rd8 {[%clk 0:01:17]} 25. Bb5 {[%clk 0:00:12]}  Nc3 {[%clk 0:01:12]} 0-1


[Site "https://www.chess.com"]

[Event "Titled Tuesday Blitz January 03 Early 2023"]
[White "Renjith, Sravan"]
[Black "Ankerst, Mihael"]
[WhiteFideId "4306783"]
[BlackFideId "14602369"]
[WhiteElo "2172"]
[BlackElo "2370"]
[Result "1-0"]
[Round "09"]
[TimeControl "180+2"]
[Date "2023.01.03"]
[WhiteClock "0:00:06"]
[BlackClock "0:00:01"]

1. Nf3 {[%clk 0:02:57]}  Nf6 {[%clk 0:02:48]} 2. d4 {[%clk 0:02:57]}  g6 {[%clk 0:02:48]} 3. g3 {[%clk 0:02:55]}  Bg7 {[%clk 0:02:44]} 4. Bg2 {[%clk 0:02:54]}  d6 {[%clk 0:02:44]} 5. O-O {[%clk 0:02:55]}  O-O {[%clk 0:02:45]} 6. Nbd2 {[%clk 0:02:56]}  d5 {[%clk 0:02:44]} 7. Ne5 {[%clk 0:02:53]}  Nbd7 {[%clk 0:02:42]} 8. c4 {[%clk 0:02:52]}  c6 {[%clk 0:02:41]} 9. cxd5 {[%clk 0:02:51]}  cxd5 {[%clk 0:02:41]} 10. Ndf3 {[%clk 0:02:51]}  Nb6 {[%clk 0:02:01]} 11. Bf4 {[%clk 0:02:47]}  Bf5 {[%clk 0:02:01]} 12. Rc1 {[%clk 0:02:45]}  Be4 {[%clk 0:02:00]} 13. Qb3 {[%clk 0:02:43]}  Rc8 {[%clk 0:01:56]} 14. Rxc8 {[%clk 0:02:41]}  Qxc8 {[%clk 0:01:56]} 15. Rc1 {[%clk 0:02:41]}  Qd8 {[%clk 0:01:50]} 16. a4 {[%clk 0:02:41]}  a5 {[%clk 0:00:32]} 17. Nxf7 {[%clk 0:00:04]}  Rxf7 {[%clk 0:00:33]} 18. Bc7 {[%clk 0:00:04]}  Qc8 {[%clk 0:00:33]} 19. Qxb6 {[%clk 0:00:03]}  Ne8 {[%clk 0:00:33]} 20. Ne5 {[%clk 0:00:03]}  Rf6 {[%clk 0:00:33]} 21. Qxa5 {[%clk 0:00:03]}  Ra6 {[%clk 0:00:30]} 22. Qc3 {[%clk 0:00:03]}  Rxa4 {[%clk 0:00:30]} 23. Bxe4 {[%clk 0:00:03]}  dxe4 {[%clk 0:00:29]} 24. Qb3+ {[%clk 0:00:04]}  e6 {[%clk 0:00:27]} 25. Qxa4 {[%clk 0:00:04]}  Nxc7 {[%clk 0:00:27]} 26. Qc4 {[%clk 0:00:05]}  Bxe5 {[%clk 0:00:01]} 27. dxe5 {[%clk 0:00:06]}  Qf8 {[%clk 0:00:01]} 28. Qxc7 {[%clk 0:00:06]}  e3 {[%clk 0:00:02]} 29. f3 {[%clk 0:00:06]}  h5 {[%clk 0:00:01]} 30. Rd1 {[%clk 0:00:06]} 1-0


[Site "https://www.chess.com"]

[Event "Titled Tuesday Blitz January 03 Early 2023"]
[White "Tran, Thanh Tu"]
[Black "Demchenko, Anton"]
[WhiteFideId "12401404"]
[BlackFideId "4160258"]
[WhiteElo "2412"]
[BlackElo "2623"]
[Result "0-1"]
[Round "09"]
[TimeControl "180+2"]
[Date "2023.01.03"]
[WhiteClock "0:00:04"]
[BlackClock "0:01:05"]

1. Nf3 {[%clk 0:03:00]}  Nf6 {[%clk 0:02:46]} 2. d4 {[%clk 0:03:01]}  d6 {[%clk 0:02:42]} 3. e3 {[%clk 0:02:58]}  g6 {[%clk 0:02:39]} 4. b3 {[%clk 0:02:55]}  Bg7 {[%clk 0:02:40]} 5. Bb2 {[%clk 0:02:55]}  O-O {[%clk 0:02:41]} 6. Nbd2 {[%clk 0:02:56]}  Nbd7 {[%clk 0:02:40]} 7. c4 {[%clk 0:02:53]}  Re8 {[%clk 0:02:40]} 8. Be2 {[%clk 0:02:53]}  e5 {[%clk 0:02:41]} 9. dxe5 {[%clk 0:02:52]}  dxe5 {[%clk 0:02:41]} 10. O-O {[%clk 0:02:51]}  e4 {[%clk 0:02:39]} 11. Nd4 {[%clk 0:02:44]}  Qe7 {[%clk 0:02:38]} 12. Qc2 {[%clk 0:02:37]}  c6 {[%clk 0:02:37]} 13. a4 {[%clk 0:02:27]}  a5 {[%clk 0:02:37]} 14. Ba3 {[%clk 0:02:23]}  Qe5 {[%clk 0:02:37]} 15. c5 {[%clk 0:02:19]}  Qg5 {[%clk 0:02:36]} 16. Nc4 {[%clk 0:02:11]}  Ne5 {[%clk 0:02:32]} 17. Rfd1 {[%clk 0:01:25]}  Bh3 {[%clk 0:02:28]} 18. Bf1 {[%clk 0:01:24]}  Nxc4 {[%clk 0:02:22]} 19. Qxc4 {[%clk 0:01:21]}  h5 {[%clk 0:02:16]} 20. Kh1 {[%clk 0:01:13]}  Ng4 {[%clk 0:02:02]} 21. Ra2 {[%clk 0:01:12]}  Qe5 {[%clk 0:01:54]} 22. g3 {[%clk 0:00:57]}  Bxf1 {[%clk 0:01:53]} 23. Rxf1 {[%clk 0:00:58]}  Qf6 {[%clk 0:01:46]} 24. h3 {[%clk 0:00:44]}  Ne5 {[%clk 0:01:44]} 25. Qe2 {[%clk 0:00:44]}  Rad8 {[%clk 0:01:40]} 26. Rd2 {[%clk 0:00:39]}  Qe7 {[%clk 0:01:35]} 27. Kg2 {[%clk 0:00:35]}  Rd5 {[%clk 0:01:33]} 28. Rfd1 {[%clk 0:00:34]}  Qf6 {[%clk 0:01:28]} 29. b4 {[%clk 0:00:32]}  axb4 {[%clk 0:01:28]} 30. Bxb4 {[%clk 0:00:32]}  Ra8 {[%clk 0:01:22]} 31. a5 {[%clk 0:00:32]}  Nd3 {[%clk 0:01:23]} 32. Rxd3 {[%clk 0:00:30]}  exd3 {[%clk 0:01:23]} 33. Rxd3 {[%clk 0:00:30]}  Qd8 {[%clk 0:01:20]} 34. Qd1 {[%clk 0:00:21]}  Qe8 {[%clk 0:01:14]} 35. Qf3 {[%clk 0:00:20]}  Rad8 {[%clk 0:01:09]} 36. Bc3 {[%clk 0:00:04]}  Rxc5 {[%clk 0:01:05]} 37. Bb4 {[%clk 0:00:04]}  Rcd5 {[%clk 0:01:05]} 0-1


[Site "https://www.chess.com"]